Workbook

Sheet Sheet1
B2: عمليات قديمة
A3: م | B3: ج | C3: ف | D3: 15 | E3: 3 | F3: 4 | G3: اجمالي
D4: =B4*15/22 -> 0 | E4: =D4/5 -> 0 | F4: =B4-D4-E4 -> 0 | G4: =F4+E4+D4+C4 -> 0
D5: =B5*15/22 -> 0 | E5: =D5/5 -> 0 | F5: =B5-D5-E5 -> 0 | G5: =F5+E5+D5+C5 -> 0
D6: 0 | E6: 0 | F6: 0 | G6: 0
D7: 0 | E7: 0 | F7: 0 | G7: 0
D8: 0 | E8: 0 | F8: 0 | G8: 0
D9: 0 | E9: 0 | F9: 0 | G9: 0
D10: 0 | E10: 0 | F10: 0 | G10: 0
D11: 0 | E11: 0 | F11: 0 | G11: 0
D12: 0 | E12: 0 | F12: 0 | G12: 0
D13: 0 | E13: 0 | F13: 0 | G13: 0
D14: 0 | E14: 0 | F14: 0 | G14: 0
D15: 0 | E15: 0 | F15: 0 | G15: 0
D16: 0 | E16: 0 | F16: 0 | G16: 0
D17: 0 | E17: 0 | F17: 0 | G17: 0
D18: 0 | E18: 0 | F18: 0 | G18: 0
D19: 0 | E19: 0 | F19: 0 | G19: 0
D20: 0 | E20: 0 | F20: 0 | G20: 0
D21: 0 | E21: 0 | F21: 0 | G21: 0
D22: 0 | E22: 0 | F22: 0 | G22: 0
D23: 0 | E23: 0 | F23: 0 | G23: 0
D24: 0 | E24: 0 | F24: 0 | G24: 0
D25: 0 | E25: 0 | F25: 0 | G25: 0
D26: 0 | E26: 0 | F26: 0 | G26: 0
D27: 0 | E27: 0 | F27: 0 | G27: 0
D28: 0 | E28: 0 | F28: 0 | G28: 0
D29: 0 | E29: 0 | F29: 0 | G29: 0
D30: 0 | E30: 0 | F30: 0 | G30: 0
D31: 0 | E31: 0 | F31: 0 | G31: 0
D32: 0 | E32: 0 | F32: 0 | G32: 0
D33: 0 | E33: 0 | F33: 0 | G33: 0
D34: 0 | E34: 0 | F34: 0 | G34: 0
D35: 0 | E35: 0 | F35: 0 | G35: 0
D36: 0 | E36: 0 | F36: 0 | G36: 0
D37: 0 | E37: 0 | F37: 0 | G37: 0
D38: 0 | E38: 0 | F38: 0 | G38: 0
D39: 0 | E39: 0 | F39: 0 | G39: 0
D40: 0 | E40: 0 | F40: 0 | G40: 0
D41: 0 | E41: 0 | F41: 0 | G41: 0
D42: 0 | E42: 0 | F42: 0 | G42: 0
D43: 0 | E43: 0 | F43: 0 | G43: 0
D44: 0 | E44: 0 | F44: 0 | G44: 0
D45: 0 | E45: 0 | F45: 0 | G45: 0
D46: 0 | E46: 0 | F46: 0 | G46: 0
D47: 0 | E47: 0 | F47: 0 | G47: 0
D48: 0 | E48: 0 | F48: 0 | G48: 0
D49: 0 | E49: 0 | F49: 0 | G49: 0
D50: 0 | E50: 0 | F50: 0 | G50: 0
D51: 0 | E51: 0 | F51: 0 | G51: 0
D52: 0 | E52: 0 | F52: 0 | G52: 0
D53: 0 | E53: 0 | F53: 0 | G53: 0
D54: 0 | E54: 0 | F54: 0 | G54: 0
D55: 0 | E55: 0 | F55: 0 | G55: 0
D56: 0 | E56: 0 | F56: 0 | G56: 0
D57: 0 | E57: 0 | F57: 0 | G57: 0
D58: 0 | E58: 0 | F58: 0 | G58: 0
D59: 0 | E59: 0 | F59: 0 | G59: 0
D60: 0 | E60: 0 | F60: 0 | G60: 0
D61: 0 | E61: 0 | F61: 0 | G61: 0
D62: 0 | E62: 0 | F62: 0 | G62: 0
D63: 0 | E63: 0 | F63: 0 | G63: 0
D64: 0 | E64: 0 | F64: 0 | G64: 0
D65: 0 | E65: 0 | F65: 0 | G65: 0
D66: 0 | E66: 0 | F66: 0 | G66: 0
D67: 0 | E67: 0 | F67: 0 | G67: 0
D68: 0 | E68: 0 | F68: 0 | G68: 0
D69: =B69*15/22 -> 0 | E69: =D69/5 -> 0 | F69: =B69-D69-E69 -> 0 | G69: =F69+E69+D69+C69 -> 0
D70: 0 | E70: 0 | F70: 0 | G70: 0
D71: 0 | E71: 0 | F71: 0 | G71: 0
D72: 0 | E72: 0 | F72: 0 | G72: 0
D73: 0 | E73: 0 | F73: 0 | G73: 0
D74: 0 | E74: 0 | F74: 0 | G74: 0
D75: 0 | E75: 0 | F75: 0 | G75: 0
D76: 0 | E76: 0 | F76: 0 | G76: 0
D77: 0 | E77: 0 | F77: 0 | G77: 0
D78: 0 | E78: 0 | F78: 0 | G78: 0
D79: 0 | E79: 0 | F79: 0 | G79: 0
D80: 0 | E80: 0 | F80: 0 | G80: 0
D81: 0 | E81: 0 | F81: 0 | G81: 0
D82: 0 | E82: 0 | F82: 0 | G82: 0
D83: 0 | E83: 0 | F83: 0 | G83: 0
D84: 0 | E84: 0 | F84: 0 | G84: 0
D85: 0 | E85: 0 | F85: 0 | G85: 0
D86: 0 | E86: 0 | F86: 0 | G86: 0
D87: 0 | E87: 0 | F87: 0 | G87: 0
D88: 0 | E88: 0 | F88: 0 | G88: 0
D89: 0 | E89: 0 | F89: 0 | G89: 0
D90: 0 | E90: 0 | F90: 0 | G90: 0
D91: 0 | E91: 0 | F91: 0 | G91: 0
D92: 0 | E92: 0 | F92: 0 | G92: 0
D93: 0 | E93: 0 | F93: 0 | G93: 0
D94: 0 | E94: 0 | F94: 0 | G94: 0
D95: 0 | E95: 0 | F95: 0 | G95: 0
D96: 0 | E96: 0 | F96: 0 | G96: 0
D97: 0 | E97: 0 | F97: 0 | G97: 0
D98: 0 | E98: 0 | F98: 0 | G98: 0
D99: 0 | E99: 0 | F99: 0 | G99: 0
D100: 0 | E100: 0 | F100: 0 | G100: 0
D101: 0 | E101: 0 | F101: 0 | G101: 0
D102: 0 | E102: 0 | F102: 0 | G102: 0
D103: 0 | E103: 0 | F103: 0 | G103: 0
D104: 0 | E104: 0 | F104: 0 | G104: 0
D105: 0 | E105: 0 | F105: 0 | G105: 0
D106: 0 | E106: 0 | F106: 0 | G106: 0
D107: 0 | E107: 0 | F107: 0 | G107: 0
D108: 0 | E108: 0 | F108: 0 | G108: 0
D109: 0 | E109: 0 | F109: 0 | G109: 0
D110: 0 | E110: 0 | F110: 0 | G110: 0
D111: 0 | E111: 0 | F111: 0 | G111: 0
D112: 0 | E112: 0 | F112: 0 | G112: 0
D113: 0 | E113: 0 | F113: 0 | G113: 0
D114: 0 | E114: 0 | F114: 0 | G114: 0
D115: 0 | E115: 0 | F115: 0 | G115: 0
D116: 0 | E116: 0 | F116: 0 | G116: 0
D117: 0 | E117: 0 | F117: 0 | G117: 0
D118: 0 | E118: 0 | F118: 0 | G118: 0
D119: 0 | E119: 0 | F119: 0 | G119: 0
D120: 0 | E120: 0 | F120: 0 | G120: 0
D121: 0 | E121: 0 | F121: 0 | G121: 0
D122: 0 | E122: 0 | F122: 0 | G122: 0
D123: 0 | E123: 0 | F123: 0 | G123: 0
D124: 0 | E124: 0 | F124: 0 | G124: 0
D125: 0 | E125: 0 | F125: 0 | G125: 0
D126: 0 | E126: 0 | F126: 0 | G126: 0
D127: 0 | E127: 0 | F127: 0 | G127: 0
D128: 0 | E128: 0 | F128: 0 | G128: 0
D129: 0 | E129: 0 | F129: 0 | G129: 0
D130: 0 | E130: 0 | F130: 0 | G130: 0
D131: 0 | E131: 0 | F131: 0 | G131: 0
D132: 0 | E132: 0 | F132: 0 | G132: 0
D133: =B133*15/22 -> 0 | E133: =D133/5 -> 0 | F133: =B133-D133-E133 -> 0 | G133: =F133+E133+D133+C133 -> 0
D134: 0 | E134: 0 | F134: 0 | G134: 0
D135: 0 | E135: 0 | F135: 0 | G135: 0
D136: 0 | E136: 0 | F136: 0 | G136: 0
D137: 0 | E137: 0 | F137: 0 | G137: 0
D138: 0 | E138: 0 | F138: 0 | G138: 0
D139: 0 | E139: 0 | F139: 0 | G139: 0
D140: 0 | E140: 0 | F140: 0 | G140: 0
D141: 0 | E141: 0 | F141: 0 | G141: 0
D142: 0 | E142: 0 | F142: 0 | G142: 0
D143: 0 | E143: 0 | F143: 0 | G143: 0
D144: 0 | E144: 0 | F144: 0 | G144: 0
D145: 0 | E145: 0 | F145: 0 | G145: 0
D146: 0 | E146: 0 | F146: 0 | G146: 0
D147: 0 | E147: 0 | F147: 0 | G147: 0
D148: 0 | E148: 0 | F148: 0 | G148: 0
D149: 0 | E149: 0 | F149: 0 | G149: 0
D150: 0 | E150: 0 | F150: 0 | G150: 0
D151: 0 | E151: 0 | F151: 0 | G151: 0
D152: 0 | E152: 0 | F152: 0 | G152: 0
D153: 0 | E153: 0 | F153: 0 | G153: 0
D154: 0 | E154: 0 | F154: 0 | G154: 0
D155: 0 | E155: 0 | F155: 0 | G155: 0
D156: 0 | E156: 0 | F156: 0 | G156: 0
D157: 0 | E157: 0 | F157: 0 | G157: 0
D158: 0 | E158: 0 | F158: 0 | G158: 0
D159: 0 | E159: 0 | F159: 0 | G159: 0
D160: 0 | E160: 0 | F160: 0 | G160: 0
D161: 0 | E161: 0 | F161: 0 | G161: 0
D162: 0 | E162: 0 | F162: 0 | G162: 0
D163: 0 | E163: 0 | F163: 0 | G163: 0
D164: 0 | E164: 0 | F164: 0 | G164: 0
D165: 0 | E165: 0 | F165: 0 | G165: 0
D166: 0 | E166: 0 | F166: 0 | G166: 0
D167: 0 | E167: 0 | F167: 0 | G167: 0
D168: 0 | E168: 0 | F168: 0 | G168: 0
D169: 0 | E169: 0 | F169: 0 | G169: 0
D170: 0 | E170: 0 | F170: 0 | G170: 0
D171: 0 | E171: 0 | F171: 0 | G171: 0
D172: 0 | E172: 0 | F172: 0 | G172: 0
D173: 0 | E173: 0 | F173: 0 | G173: 0
D174: 0 | E174: 0 | F174: 0 | G174: 0
D175: 0 | E175: 0 | F175: 0 | G175: 0
D176: 0 | E176: 0 | F176: 0 | G176: 0
D177: 0 | E177: 0 | F177: 0 | G177: 0
D178: 0 | E178: 0 | F178: 0 | G178: 0
D179: 0 | E179: 0 | F179: 0 | G179: 0
D180: 0 | E180: 0 | F180: 0 | G180: 0
D181: 0 | E181: 0 | F181: 0 | G181: 0
D182: 0 | E182: 0 | F182: 0 | G182: 0
D183: 0 | E183: 0 | F183: 0 | G183: 0
D184: 0 | E184: 0 | F184: 0 | G184: 0
D185: 0 | E185: 0 | F185: 0 | G185: 0
D186: 0 | E186: 0 | F186: 0 | G186: 0
D187: 0 | E187: 0 | F187: 0 | G187: 0
D188: 0 | E188: 0 | F188: 0 | G188: 0
D189: 0 | E189: 0 | F189: 0 | G189: 0
D190: 0 | E190: 0 | F190: 0 | G190: 0
D191: 0 | E191: 0 | F191: 0 | G191: 0
D192: 0 | E192: 0 | F192: 0 | G192: 0
D193: 0 | E193: 0 | F193: 0 | G193: 0
D194: 0 | E194: 0 | F194: 0 | G194: 0
D195: 0 | E195: 0 | F195: 0 | G195: 0
D196: 0 | E196: 0 | F196: 0 | G196: 0
D197: =B197*15/22 -> 0 | E197: =D197/5 -> 0 | F197: =B197-D197-E197 -> 0 | G197: =F197+E197+D197+C197 -> 0
D198: 0 | E198: 0 | F198: 0 | G198: 0
D199: 0 | E199: 0 | F199: 0 | G199: 0
D200: 0 | E200: 0 | F200: 0 | G200: 0
D201: 0 | E201: 0 | F201: 0 | G201: 0
... 2 more rows

Sheet Sheet2
B2: عمليات جديدة
A3: م | B3: ج | C3: ف | D3: 12 | E3: 1 | F3: 3.25 | G3: 2 | H3: الإجمالي
A4: 1 | B4: 100 | D4: =B4*12/18.25 -> 65.75342466 | E4: =D4/12 -> 5.479452055 | F4: =G4*1.625 -> 17.80821918 | G4: =E4*2 -> 10.95890411 | H4: =G4+F4+E4+D4+C4 -> 100
A5: 2 | B5: 12555 | D5: =B5*12/18.25 -> 8255.342466 | E5: =D5/12 -> 687.9452055 | F5: =G5*1.625 -> 2235.821918 | G5: =E5*2 -> 1375.890411 | H5: =G5+F5+E5+D5+C5 -> 12555
A6: 3 | B6: 5000 | D6: 3287.671233 | E6: 273.9726027 | F6: 890.4109589 | G6: 547.9452055 | H6: 5000
A7: 4 | B7: 2200 | D7: 1446.575342 | E7: 120.5479452 | F7: 391.7808219 | G7: 241.0958904 | H7: 2200
A8: 5 | B8: 100 | D8: 65.75342466 | E8: 5.479452055 | F8: 17.80821918 | G8: 10.95890411 | H8: 100
A9: 6 | B9: 1222 | D9: 803.5068493 | E9: 66.95890411 | F9: 217.6164384 | G9: 133.9178082 | H9: 1222
A10: 7 | B10: 1233 | D10: 810.739726 | E10: 67.56164384 | F10: 219.5753425 | G10: 135.1232877 | H10: 1233
A11: 8 | B11: 10233 | D11: 6728.547945 | E11: 560.7123288 | F11: 1822.315068 | G11: 1121.424658 | H11: 10233
A12: 9 | B12: 5222 | D12: 3433.643836 | E12: 286.1369863 | F12: 929.9452055 | G12: 572.2739726 | H12: 5222
A13: 10 | B13: 5222 | D13: 3433.643836 | E13: 286.1369863 | F13: 929.9452055 | G13: 572.2739726 | H13: 5222
A14: 11 | B14: 5666 | D14: 3725.589041 | E14: 310.4657534 | F14: 1009.013699 | G14: 620.9315068 | H14: 5666
A15: 12 | B15: 6333 | D15: 4164.164384 | E15: 347.0136986 | F15: 1127.794521 | G15: 694.0273973 | H15: 6333
A16: 13 | B16: 56699 | D16: 37281.53425 | E16: 3106.794521 | F16: 10097.08219 | G16: 6213.589041 | H16: 56699
A17: 14 | B17: 2566 | D17: 1687.232877 | E17: 140.6027397 | F17: 456.9589041 | G17: 281.2054795 | H17: 2566
A18: 15 | B18: 123366 | D18: 81117.36986 | E18: 6759.780822 | F18: 21969.28767 | G18: 13519.56164 | H18: 123366
D19: 0 | E19: 0 | F19: 0 | G19: 0 | H19: 0
D20: 0 | E20: 0 | F20: 0 | G20: 0 | H20: 0
D21: 0 | E21: 0 | F21: 0 | G21: 0 | H21: 0
D22: 0 | E22: 0 | F22: 0 | G22: 0 | H22: 0
D23: 0 | E23: 0 | F23: 0 | G23: 0 | H23: 0
D24: 0 | E24: 0 | F24: 0 | G24: 0 | H24: 0
D25: 0 | E25: 0 | F25: 0 | G25: 0 | H25: 0
D26: 0 | E26: 0 | F26: 0 | G26: 0 | H26: 0
D27: 0 | E27: 0 | F27: 0 | G27: 0 | H27: 0
D28: 0 | E28: 0 | F28: 0 | G28: 0 | H28: 0
D29: 0 | E29: 0 | F29: 0 | G29: 0 | H29: 0
D30: 0 | E30: 0 | F30: 0 | G30: 0 | H30: 0
D31: 0 | E31: 0 | F31: 0 | G31: 0 | H31: 0
D32: 0 | E32: 0 | F32: 0 | G32: 0 | H32: 0
D33: 0 | E33: 0 | F33: 0 | G33: 0 | H33: 0
D34: 0 | E34: 0 | F34: 0 | G34: 0 | H34: 0
D35: 0 | E35: 0 | F35: 0 | G35: 0 | H35: 0
D36: 0 | E36: 0 | F36: 0 | G36: 0 | H36: 0
D37: 0 | E37: 0 | F37: 0 | G37: 0 | H37: 0
D38: 0 | E38: 0 | F38: 0 | G38: 0 | H38: 0
D39: 0 | E39: 0 | F39: 0 | G39: 0 | H39: 0
D40: 0 | E40: 0 | F40: 0 | G40: 0 | H40: 0
D41: 0 | E41: 0 | F41: 0 | G41: 0 | H41: 0
D42: 0 | E42: 0 | F42: 0 | G42: 0 | H42: 0
D43: 0 | E43: 0 | F43: 0 | G43: 0 | H43: 0
D44: 0 | E44: 0 | F44: 0 | G44: 0 | H44: 0
D45: 0 | E45: 0 | F45: 0 | G45: 0 | H45: 0
D46: 0 | E46: 0 | F46: 0 | G46: 0 | H46: 0
D47: 0 | E47: 0 | F47: 0 | G47: 0 | H47: 0
D48: 0 | E48: 0 | F48: 0 | G48: 0 | H48: 0
D49: 0 | E49: 0 | F49: 0 | G49: 0 | H49: 0
D50: 0 | E50: 0 | F50: 0 | G50: 0 | H50: 0
D51: 0 | E51: 0 | F51: 0 | G51: 0 | H51: 0
D52: 0 | E52: 0 | F52: 0 | G52: 0 | H52: 0
D53: 0 | E53: 0 | F53: 0 | G53: 0 | H53: 0
D54: 0 | E54: 0 | F54: 0 | G54: 0 | H54: 0
D55: 0 | E55: 0 | F55: 0 | G55: 0 | H55: 0
D56: 0 | E56: 0 | F56: 0 | G56: 0 | H56: 0
D57: 0 | E57: 0 | F57: 0 | G57: 0 | H57: 0
D58: 0 | E58: 0 | F58: 0 | G58: 0 | H58: 0
D59: 0 | E59: 0 | F59: 0 | G59: 0 | H59: 0
D60: 0 | E60: 0 | F60: 0 | G60: 0 | H60: 0
D61: 0 | E61: 0 | F61: 0 | G61: 0 | H61: 0
D62: 0 | E62: 0 | F62: 0 | G62: 0 | H62: 0
D63: 0 | E63: 0 | F63: 0 | G63: 0 | H63: 0
D64: 0 | E64: 0 | F64: 0 | G64: 0 | H64: 0
D65: 0 | E65: 0 | F65: 0 | G65: 0 | H65: 0
D66: 0 | E66: 0 | F66: 0 | G66: 0 | H66: 0
D67: 0 | E67: 0 | F67: 0 | G67: 0 | H67: 0
D68: 0 | E68: 0 | F68: 0 | G68: 0 | H68: 0
D69: =B69*12/18.25 -> 0 | E69: =D69/12 -> 0 | F69: =G69*1.625 -> 0 | G69: =E69*2 -> 0 | H69: =G69+F69+E69+D69+C69 -> 0
D70: 0 | E70: 0 | F70: 0 | G70: 0 | H70: 0
D71: 0 | E71: 0 | F71: 0 | G71: 0 | H71: 0
D72: 0 | E72: 0 | F72: 0 | G72: 0 | H72: 0
D73: 0 | E73: 0 | F73: 0 | G73: 0 | H73: 0
D74: 0 | E74: 0 | F74: 0 | G74: 0 | H74: 0
D75: 0 | E75: 0 | F75: 0 | G75: 0 | H75: 0
D76: 0 | E76: 0 | F76: 0 | G76: 0 | H76: 0
D77: 0 | E77: 0 | F77: 0 | G77: 0 | H77: 0
D78: 0 | E78: 0 | F78: 0 | G78: 0 | H78: 0
D79: 0 | E79: 0 | F79: 0 | G79: 0 | H79: 0
D80: 0 | E80: 0 | F80: 0 | G80: 0 | H80: 0
D81: 0 | E81: 0 | F81: 0 | G81: 0 | H81: 0
D82: 0 | E82: 0 | F82: 0 | G82: 0 | H82: 0
D83: 0 | E83: 0 | F83: 0 | G83: 0 | H83: 0
D84: 0 | E84: 0 | F84: 0 | G84: 0 | H84: 0
D85: 0 | E85: 0 | F85: 0 | G85: 0 | H85: 0
D86: 0 | E86: 0 | F86: 0 | G86: 0 | H86: 0
D87: 0 | E87: 0 | F87: 0 | G87: 0 | H87: 0
D88: 0 | E88: 0 | F88: 0 | G88: 0 | H88: 0
D89: 0 | E89: 0 | F89: 0 | G89: 0 | H89: 0
D90: 0 | E90: 0 | F90: 0 | G90: 0 | H90: 0
D91: 0 | E91: 0 | F91: 0 | G91: 0 | H91: 0
D92: 0 | E92: 0 | F92: 0 | G92: 0 | H92: 0
D93: 0 | E93: 0 | F93: 0 | G93: 0 | H93: 0
D94: 0 | E94: 0 | F94: 0 | G94: 0 | H94: 0
D95: 0 | E95: 0 | F95: 0 | G95: 0 | H95: 0
D96: 0 | E96: 0 | F96: 0 | G96: 0 | H96: 0
D97: 0 | E97: 0 | F97: 0 | G97: 0 | H97: 0
D98: 0 | E98: 0 | F98: 0 | G98: 0 | H98: 0
D99: 0 | E99: 0 | F99: 0 | G99: 0 | H99: 0
D100: 0 | E100: 0 | F100: 0 | G100: 0 | H100: 0
D101: 0 | E101: 0 | F101: 0 | G101: 0 | H101: 0
D102: 0 | E102: 0 | F102: 0 | G102: 0 | H102: 0
D103: 0 | E103: 0 | F103: 0 | G103: 0 | H103: 0
D104: 0 | E104: 0 | F104: 0 | G104: 0 | H104: 0
D105: 0 | E105: 0 | F105: 0 | G105: 0 | H105: 0
D106: 0 | E106: 0 | F106: 0 | G106: 0 | H106: 0
D107: 0 | E107: 0 | F107: 0 | G107: 0 | H107: 0
D108: 0 | E108: 0 | F108: 0 | G108: 0 | H108: 0
D109: 0 | E109: 0 | F109: 0 | G109: 0 | H109: 0
D110: 0 | E110: 0 | F110: 0 | G110: 0 | H110: 0
D111: 0 | E111: 0 | F111: 0 | G111: 0 | H111: 0
D112: 0 | E112: 0 | F112: 0 | G112: 0 | H112: 0
D113: 0 | E113: 0 | F113: 0 | G113: 0 | H113: 0
D114: 0 | E114: 0 | F114: 0 | G114: 0 | H114: 0
D115: 0 | E115: 0 | F115: 0 | G115: 0 | H115: 0
D116: 0 | E116: 0 | F116: 0 | G116: 0 | H116: 0
D117: 0 | E117: 0 | F117: 0 | G117: 0 | H117: 0
D118: 0 | E118: 0 | F118: 0 | G118: 0 | H118: 0
D119: 0 | E119: 0 | F119: 0 | G119: 0 | H119: 0
D120: 0 | E120: 0 | F120: 0 | G120: 0 | H120: 0
D121: 0 | E121: 0 | F121: 0 | G121: 0 | H121: 0
D122: 0 | E122: 0 | F122: 0 | G122: 0 | H122: 0
D123: 0 | E123: 0 | F123: 0 | G123: 0 | H123: 0
D124: 0 | E124: 0 | F124: 0 | G124: 0 | H124: 0
D125: 0 | E125: 0 | F125: 0 | G125: 0 | H125: 0
D126: 0 | E126: 0 | F126: 0 | G126: 0 | H126: 0
D127: 0 | E127: 0 | F127: 0 | G127: 0 | H127: 0
D128: 0 | E128: 0 | F128: 0 | G128: 0 | H128: 0
D129: 0 | E129: 0 | F129: 0 | G129: 0 | H129: 0
D130: 0 | E130: 0 | F130: 0 | G130: 0 | H130: 0
D131: 0 | E131: 0 | F131: 0 | G131: 0 | H131: 0
D132: 0 | E132: 0 | F132: 0 | G132: 0 | H132: 0
D133: =B133*12/18.25 -> 0 | E133: =D133/12 -> 0 | F133: =G133*1.625 -> 0 | G133: =E133*2 -> 0 | H133: =G133+F133+E133+D133+C133 -> 0
D134: 0 | E134: 0 | F134: 0 | G134: 0 | H134: 0
D135: 0 | E135: 0 | F135: 0 | G135: 0 | H135: 0
D136: 0 | E136: 0 | F136: 0 | G136: 0 | H136: 0
D137: 0 | E137: 0 | F137: 0 | G137: 0 | H137: 0
D138: 0 | E138: 0 | F138: 0 | G138: 0 | H138: 0
D139: 0 | E139: 0 | F139: 0 | G139: 0 | H139: 0
D140: 0 | E140: 0 | F140: 0 | G140: 0 | H140: 0
D141: 0 | E141: 0 | F141: 0 | G141: 0 | H141: 0
D142: 0 | E142: 0 | F142: 0 | G142: 0 | H142: 0
D143: 0 | E143: 0 | F143: 0 | G143: 0 | H143: 0
D144: 0 | E144: 0 | F144: 0 | G144: 0 | H144: 0
D145: 0 | E145: 0 | F145: 0 | G145: 0 | H145: 0
D146: 0 | E146: 0 | F146: 0 | G146: 0 | H146: 0
D147: 0 | E147: 0 | F147: 0 | G147: 0 | H147: 0
D148: 0 | E148: 0 | F148: 0 | G148: 0 | H148: 0
D149: 0 | E149: 0 | F149: 0 | G149: 0 | H149: 0
D150: 0 | E150: 0 | F150: 0 | G150: 0 | H150: 0
D151: 0 | E151: 0 | F151: 0 | G151: 0 | H151: 0
D152: 0 | E152: 0 | F152: 0 | G152: 0 | H152: 0
D153: 0 | E153: 0 | F153: 0 | G153: 0 | H153: 0
D154: 0 | E154: 0 | F154: 0 | G154: 0 | H154: 0
D155: 0 | E155: 0 | F155: 0 | G155: 0 | H155: 0
D156: 0 | E156: 0 | F156: 0 | G156: 0 | H156: 0
D157: 0 | E157: 0 | F157: 0 | G157: 0 | H157: 0
D158: 0 | E158: 0 | F158: 0 | G158: 0 | H158: 0
D159: 0 | E159: 0 | F159: 0 | G159: 0 | H159: 0
D160: 0 | E160: 0 | F160: 0 | G160: 0 | H160: 0
D161: 0 | E161: 0 | F161: 0 | G161: 0 | H161: 0
D162: 0 | E162: 0 | F162: 0 | G162: 0 | H162: 0
D163: 0 | E163: 0 | F163: 0 | G163: 0 | H163: 0
D164: 0 | E164: 0 | F164: 0 | G164: 0 | H164: 0
D165: 0 | E165: 0 | F165: 0 | G165: 0 | H165: 0
D166: 0 | E166: 0 | F166: 0 | G166: 0 | H166: 0
D167: 0 | E167: 0 | F167: 0 | G167: 0 | H167: 0
D168: 0 | E168: 0 | F168: 0 | G168: 0 | H168: 0
D169: 0 | E169: 0 | F169: 0 | G169: 0 | H169: 0
D170: 0 | E170: 0 | F170: 0 | G170: 0 | H170: 0
D171: 0 | E171: 0 | F171: 0 | G171: 0 | H171: 0
D172: 0 | E172: 0 | F172: 0 | G172: 0 | H172: 0
D173: 0 | E173: 0 | F173: 0 | G173: 0 | H173: 0
D174: 0 | E174: 0 | F174: 0 | G174: 0 | H174: 0
D175: 0 | E175: 0 | F175: 0 | G175: 0 | H175: 0
D176: 0 | E176: 0 | F176: 0 | G176: 0 | H176: 0
D177: 0 | E177: 0 | F177: 0 | G177: 0 | H177: 0
D178: 0 | E178: 0 | F178: 0 | G178: 0 | H178: 0
D179: 0 | E179: 0 | F179: 0 | G179: 0 | H179: 0
D180: 0 | E180: 0 | F180: 0 | G180: 0 | H180: 0
D181: 0 | E181: 0 | F181: 0 | G181: 0 | H181: 0
D182: 0 | E182: 0 | F182: 0 | G182: 0 | H182: 0
D183: 0 | E183: 0 | F183: 0 | G183: 0 | H183: 0
D184: 0 | E184: 0 | F184: 0 | G184: 0 | H184: 0
D185: 0 | E185: 0 | F185: 0 | G185: 0 | H185: 0
D186: 0 | E186: 0 | F186: 0 | G186: 0 | H186: 0
D187: 0 | E187: 0 | F187: 0 | G187: 0 | H187: 0
D188: 0 | E188: 0 | F188: 0 | G188: 0 | H188: 0
D189: 0 | E189: 0 | F189: 0 | G189: 0 | H189: 0
D190: 0 | E190: 0 | F190: 0 | G190: 0 | H190: 0
D191: 0 | E191: 0 | F191: 0 | G191: 0 | H191: 0
D192: 0 | E192: 0 | F192: 0 | G192: 0 | H192: 0
D193: 0 | E193: 0 | F193: 0 | G193: 0 | H193: 0
D194: 0 | E194: 0 | F194: 0 | G194: 0 | H194: 0
D195: 0 | E195: 0 | F195: 0 | G195: 0 | H195: 0
D196: 0 | E196: 0 | F196: 0 | G196: 0 | H196: 0
D197: =B197*12/18.25 -> 0 | E197: =D197/12 -> 0 | F197: =G197*1.625 -> 0 | G197: =E197*2 -> 0 | H197: =G197+F197+E197+D197+C197 -> 0
D198: 0 | E198: 0 | F198: 0 | G198: 0 | H198: 0
D199: 0 | E199: 0 | F199: 0 | G199: 0 | H199: 0
D200: 0 | E200: 0 | F200: 0 | G200: 0 | H200: 0
D201: 0 | E201: 0 | F201: 0 | G201: 0 | H201: 0
... 100 more rows

Sheet الحركة
B2: اجمالي | C2: ف | D2: س س | E2: 12 | F2: 1 | G2: 3.25 | H2: 2
B3: =Sheet2!H301 -> 100 | C3: =Sheet2!C301 -> 0 | E3: =Sheet2!D301 -> 65.75342466 | F3: =Sheet2!E301 -> 5.479452055 | G3: =Sheet2!F301 -> 17.80821918 | H3: =Sheet2!G301 -> 10.95890411
B5: اجمالي | C5: فوائد | D5: س س | E5: 15 | F5: 3 | G5: 4
B6: =Sheet1!G203 -> 0 | C6: =Sheet1!C203 -> 0 | E6: =Sheet1!D203 -> 0 | F6: =Sheet1!E203 -> 0 | G6: =Sheet1!F203 -> 0
D7: اجمالي الإضافات
B8: اجمالي الاشتراكات | C8: اجمالي الفوائد | D8: س س | E8: 15+12 | F8: 3+2 | G8: 4+3.25 | H8: 1
B9: =B3+B6 -> 100 | C9: =C3+C6 -> 0 | E9: =E3+E6 -> 65.75342466 | F9: =H3+F6 -> 10.95890411 | G9: =G6+G3 -> 17.80821918 | H9: =F3 -> 5.479452055
D10: اجمالي الخصــــم
B11: اجمالي الخصم | C11: الفوائد | D11: س س | E11: 15+12 | F11: 3+2 | G11: 4+3.25 | H11: 1

Sheet sheet3
F1: (نموزج رقم 604202)
C3: منطقة : البحـــــــر الاحمــــــــــــر
C4: مكتب : الغردقـــــــــــــة
C5: التاريخ : | E5: رقم المستند :
C6: البيان :
C8: حسابات مدينة | E8: المبلغ | F8: حساب رقم
C9: حـــــــــــــ / العمـــــــلاء | D9: حـــــــــــــ / العمـــــــلاء | E9: ='الحركة '!B9 -> 100
C27: الإجمالي 000 | E27: =E9 -> 100
C29: حسابات دائنة | E29: المبلغ | F29: حساب رقم
C31: حـــــــ /15% (12%) | D31: حــــــــ/ 15 % (12%) | E31: ='الحركة '!E9 -> 65.75342466
C33: حــــــــ / 3% (2%) | D33: حــــــــ / 3% (2%) | E33: ='الحركة '!F9 -> 10.95890411
C35: حــــــــ / 4% (3.25%) | D35: حــــــــ / 4% (3.25%) | E35: ='الحركة '!G9 -> 17.80821918
C37: حــــــــ / 1% | D37: حــــــــ / 1% | E37: ='الحركة '!H9 -> 5.479452055
C39: حــــــــــ / ف | D39: حــــــــــ / ف | E39: ='الحركة '!C9 -> 0
C41: حـــــــــ / س س | D41: حـــــــــ / س س | E41: ='الحركة '!D9 -> 0
C47: الإجمالي 000 | E47: =E31+E33+E35+E37+E39+E41 -> 100
C48: المحاسب : | D48: المراجع : | E48: مدير/رئيس الشئون المالية:
C49: رئيس الشئون المالية : | D49: مراقب الحسابات : | E49: التاريخ : / / 20
C50: التاريخ : / / 20 | D50: التاريخ / / 20

Sheet sheet4
F1: (نموزج رقم 604202)
C3: منطقة : البحـــــــر الاحمــــــــــــر
C4: مكتب : الغردقـــــــــــــة
C5: التاريخ : | E5: رقم المستند :
C6: البيان :
C8: حسابات مدينة | E8: المبلغ | F8: حساب رقم
C11: حــــــــ/ 15 % (12%) | D11: حــــــــ/ 15 % (12%)
C13: حــــــــ / 3% (2%) | D13: حــــــــ / 3% (2%)
C15: حــــــــ / 4% (3.25%) | D15: حــــــــ / 4% (3.25%)
C17: حــــــــ / 1% | D17: حــــــــ / 1%
C19: حــــــــــ / ف | D19: حــــــــــ / ف
C21: حـــــــــ / س س | D21: حـــــــــ / س س
C27: الإجمالي 000 | E27: =SUM(E9:E26) -> 0
C29: حسابات دائنة | E29: المبلغ | F29: حساب رقم
C30: حـــــــــــــ / العمـــــــلاء | D30: حـــــــــــــ / العمـــــــلاء
C47: الإجمالي 000
C48: المحاسب : | D48: المراجع : | E48: مدير/رئيس الشئون المالية:
C49: رئيس الشئون المالية : | D49: مراقب الحسابات : | E49: التاريخ : / / 20
C50: التاريخ : / / 20 | D50: التاريخ / / 20
